bitfinex/quotes_BTCUSD_20240915
["timestamp","ask_amount","ask_price","bid_price","bid_amount"]
[1726407153856,0.331368,60356.0,60350.0,0.1657]
[1726407154160,0.165691,60354.0,60350.0,0.165699]
[1726407154599,0.165691,60354.0,60350.0,0.175699]
[1726407154819,0.165691,60354.0,60350.0,0.02]
[1726407155049,0.165691,60354.0,60349.0,0.165701]
[1726407155488,0.167691,60354.0,60350.0,0.024]
[1726407156117,0.165691,60354.0,60349.0,0.165701]
[1726407156324,0.165691,60354.0,60346.0,0.52788593]
[1726407156535,0.167691,60354.0,60350.0,0.165699]
[1726407157799,0.167691,60354.0,60349.0,0.024]
[1726407158002,0.166691,60354.0,60349.0,0.176701]
[1726407158214,0.167691,60354.0,60350.0,0.013]
[1726407158438,0.166691,60354.0,60350.0,0.013]
[1726407158642,0.167691,60354.0,60350.0,0.024]
[1726407159061,0.165692,60353.0,60350.0,0.024]
[1726407159903,0.165692,60353.0,60350.0,0.013]
[1726407160312,0.166692,60353.0,60350.0,0.024]
[1726407160732,0.165695,60352.0,60350.0,0.024]
[1726407160941,0.165697,60351.0,60350.0,0.024]
[1726407161551,0.165697,60351.0,60350.0,0.011]
[1726407161976,0.331389,60352.0,60350.0,0.014]
[1726407162190,0.497093,60351.0,60350.0,0.011]
[1726407162392,0.165699,60351.0,60350.0,0.025]
[1726407162596,0.166699,60351.0,60350.0,0.014]
[1726407163016,0.167699,60351.0,60350.0,0.025]
[1726407163459,0.830487,60351.0,60350.0,0.025]
[1726407163929,1.2115608,60351.0,60350.0,0.025]
[1726407164230,1.161881,60351.0,60350.0,0.025]
[1726407164655,1.21155395,60351.0,60350.0,0.025]
[1726407164871,1.26024061,60351.0,60350.0,0.011]
[1726407165299,1.29008051,60351.0,60350.0,0.011]
[1726407165531,1.29003853,60351.0,60350.0,0.011]
[1726407165755,1.159938,60348.0,60347.0,0.001646]
[1726407165955,1.23443262,60348.0,60347.0,0.001646]
[1726407166527,1.159938,60348.0,60347.0,0.001646]
[1726407167513,1.20957932,60348.0,60347.0,0.001646]
[1726407167950,1.21657932,60348.0,60347.0,0.001646]
[1726407168774,1.22457932,60348.0,60347.0,0.002646]
[1726407169220,1.20094273,60348.0,60347.0,0.002646]
[1726407174132,1.19099773,60348.0,60347.0,0.002646]
[1726407176740,1.19012309,60348.0,60347.0,0.002646]
[1726407178341,0.85871209,60348.0,60347.0,0.002646]
[1726407178782,0.83270736,60348.0,60347.0,0.002646]
[1726407179787,0.50129636,60348.0,60347.0,0.002646]
[1726407180001,0.83270736,60348.0,60347.0,0.002646]
[1726407188755,1.36231836,60348.0,60347.0,0.002646]
[1726407190525,1.41187572,60348.0,60347.0,0.002646]
[1726407190788,1.46231836,60348.0,60347.0,0.002646]
[1726407191034,1.46231836,60348.0,60341.0,0.001646]
[1726407191035,0.82861,60342.0,60341.0,0.001646]
[1726407191304,0.92370911,60342.0,60341.0,0.001646]
[1726407191813,1.25515311,60342.0,60341.0,0.001646]
[1726407192325,1.25715311,60342.0,60341.0,0.001646]
[1726407193289,1.25815311,60342.0,60341.0,0.001646]
[1726407194299,1.25715311,60342.0,60341.0,0.001646]
[1726407194540,1.30974182,60342.0,60341.0,0.001646]
[1726407194776,1.31574182,60342.0,60341.0,0.002646]
[1726407195283,1.26015311,60342.0,60341.0,0.001646]
[1726407195555,1.30974182,60342.0,60341.0,0.001646]
[1726407195812,1.31574182,60342.0,60341.0,0.002646]
[1726407196088,1.41574182,60342.0,60341.0,0.002646]
[1726407196301,1.41574182,60342.0,60341.0,0.001646]
[1726407196550,1.77098017,60342.0,60341.0,0.002646]
[1726407196788,1.77998017,60342.0,60341.0,0.002646]
[1726407197517,1.71566584,60342.0,60341.0,0.002646]
[1726407198948,2.42040605,60342.0,60341.0,0.002646]
[1726407199183,2.42040605,60342.0,60328.0,0.0055778]
[1726407199184,0.03,60334.0,60328.0,0.0055778]
[1726407199407,1.07349143,60332.0,60328.0,0.0055778]
[1726407199630,1.35534511,60332.0,60328.0,0.0055778]
[1726407199920,1.68684411,60332.0,60328.0,0.0055778]
[1726407200148,1.78611975,60332.0,60328.0,0.0055778]
[1726407200370,1.78811975,60332.0,60328.0,0.0055778]
[1726407200589,1.68884411,60332.0,60328.0,0.0055778]
[1726407201046,1.70284411,60332.0,60328.0,0.0055778]
[1726407201334,1.8000999,60332.0,60328.0,0.0055778]
[1726407201560,0.497412,60312.0,60310.0,0.0071138]
[1726407202460,0.82902,60312.0,60310.0,0.0071138]
[1726407203848,1.25572711,60312.0,60310.0,0.0071138]
[1726407204743,1.35572711,60312.0,60310.0,0.0071138]
[1726407205673,1.35772711,60312.0,60310.0,0.0071138]
[1726407206125,1.36572711,60312.0,60310.0,0.0071138]
[1726407206349,1.35572711,60312.0,60310.0,0.0071138]
[1726407206563,1.37572711,60312.0,60310.0,0.0071138]
[1726407207952,1.40174733,60312.0,60310.0,0.0071138]
[1726407208167,1.37572711,60312.0,60310.0,0.0071138]
[1726407210230,1.90857532,60312.0,60310.0,0.0071138]
[1726407211319,1.91057532,60312.0,60310.0,0.0071138]
[1726407212011,1.823463,60311.0,60310.0,0.0071138]
[1726407213122,1.821463,60311.0,60310.0,0.0071138]
[1726407213334,1.830463,60311.0,60310.0,0.0071138]
[1726407214044,1.98290103,60311.0,60310.0,0.0071138]
[1726407214497,1.99290103,60311.0,60310.0,0.0071138]
[1726407215225,1.98290103,60311.0,60310.0,0.0071138]
[1726407215679,2.16814124,60311.0,60310.0,0.0071138]
[1726407215908,2.15614124,60311.0,60310.0,0.0071138]
[1726407216141,2.15414124,60311.0,60310.0,0.0071138]
[1726407216370,1.98290103,60311.0,60310.0,0.0071138]
[1726407216599,1.97390103,60311.0,60310.0,0.0071138]
[1726407216840,1.98790103,60311.0,60310.0,0.0071138]
[1726407217533,2.02792273,60311.0,60310.0,0.0071138]
[1726407217764,2.00190103,60311.0,60310.0,0.0071138]
[1726407218005,2.17314124,60311.0,60310.0,0.0071138]
[1726407218484,2.17514124,60311.0,60310.0,0.0071138]
[1726407218725,2.23514124,60311.0,60310.0,0.0071138]
[1726407219720,2.23514124,60311.0,60305.0,0.001648]
[1726407219721,1.77682203,60306.0,60305.0,0.001648]
[1726407220219,1.684461,60303.0,60302.0,0.001648]
[1726407220792,0.03,60298.0,60297.0,0.001646]
[1726407220991,1.83502003,60298.0,60297.0,0.001646]
[1726407221452,2.00626024,60298.0,60297.0,0.001646]
[1726407221704,2.00826024,60298.0,60297.0,0.001646]
[1726407221940,2.03428832,60298.0,60297.0,0.001646]
[1726407222458,2.04828832,60298.0,60297.0,0.001646]
[1726407222702,1.87504811,60298.0,60297.0,0.001646]
[1726407223446,1.88904811,60298.0,60297.0,0.001646]
[1726407223683,1.87504811,60298.0,60297.0,0.001646]
[1726407224160,1.88904811,60298.0,60297.0,0.001646]
[1726407224650,1.87504811,60298.0,60297.0,0.001646]
[1726407224886,2.06028832,60298.0,60297.0,0.001646]
[1726407225859,2.08328832,60298.0,60297.0,0.001646]
[1726407226801,2.06928832,60298.0,60297.0,0.001646]
[1726407227554,2.08328832,60298.0,60297.0,0.001646]
[1726407227798,1.87504811,60298.0,60297.0,0.001646]
[1726407228299,1.88904811,60298.0,60297.0,0.001646]
[1726407229056,1.89104811,60298.0,60297.0,0.001646]
[1726407229288,1.88904811,60298.0,60297.0,0.001646]
[1726407230196,1.87504811,60298.0,60297.0,0.001646]
[1726407230446,1.48336311,60298.0,60297.0,0.001646]
[1726407230698,1.34492508,60298.0,60297.0,0.001646]
[1726407231134,1.33092508,60298.0,60297.0,0.001646]
[1726407231167,1.31692508,60298.0,60297.0,0.001646]
[1726407231418,1.318897,60298.0,60297.0,0.001646]
[1726407231654,1.304897,60298.0,60297.0,0.001646]
[1726407231872,1.47160809,60298.0,60297.0,0.001646]
[1726407232644,1.45760809,60298.0,60297.0,0.001646]
[1726407232893,1.318897,60298.0,60297.0,0.001646]
[1726407237444,1.47133503,60298.0,60297.0,0.001646]
[1726407237922,1.49736299,60298.0,60297.0,0.001646]
[1726407238442,1.52736299,60298.0,60297.0,0.001646]
[1726407238694,1.71407688,60298.0,60297.0,0.001646]
[1726407239643,1.70007688,60298.0,60297.0,0.001646]
[1726407239891,1.71407688,60298.0,60297.0,0.001646]
[1726407240346,1.70007688,60298.0,60297.0,0.001646]
[1726407240814,1.68607688,60298.0,60297.0,0.001646]
[1726407241058,1.70007688,60298.0,60297.0,0.001646]
[1726407241558,0.55155496,60298.0,60297.0,0.001646]
[1726407241839,0.21986996,60298.0,60297.0,0.001646]
[1726407242549,0.05402796,60298.0,60297.0,0.001646]
[1726407242781,0.04002796,60298.0,60297.0,0.001646]
[1726407243008,0.20986996,60298.0,60297.0,0.001646]
[1726407243265,0.19586996,60298.0,60297.0,0.001646]
[1726407243488,0.52755496,60298.0,60297.0,0.001646]
[1726407243709,0.19586996,60298.0,60297.0,0.001646]
[1726407243960,0.19386996,60298.0,60297.0,0.001646]
[1726407244184,0.19486996,60298.0,60297.0,0.001646]
[1726407244443,0.168842,60298.0,60297.0,0.001646]
[1726407246522,0.003,60298.0,60297.0,0.001646]
[1726407249816,0.003,60298.0,60297.0,0.167491]
[1726407251513,0.003,60298.0,60297.0,0.352191]
[1726407253861,0.003,60298.0,60297.0,0.683882]
[1726407254093,0.003,60298.0,60297.0,0.352191]
[1726407257617,0.003,60298.0,60297.0,0.35191552]
[1726407263972,0.004648,60298.0,60297.0,0.35191552]
[1726407264227,0.004648,60298.0,60297.0,1.01529752]
[1726407264935,0.004648,60298.0,60297.0,0.68360652]
[1726407268192,0.004648,60298.0,60297.0,0.35191552]
[1726407268463,0.004648,60298.0,60297.0,0.68360652]
[1726407268703,0.001648,60298.0,60297.0,0.68360652]
[1726407269161,0.002648,60298.0,60297.0,0.68360652]
[1726407271119,0.001648,60298.0,60297.0,0.35191552]
[1726407271555,0.003648,60298.0,60297.0,0.35191552]
[1726407274030,0.003648,60298.0,60297.0,0.18607052]
[1726407274575,0.003648,60298.0,60297.0,0.35191552]
[1726407276493,0.003648,60298.0,60297.0,0.68360652]
[1726407276723,0.003648,60298.0,60297.0,0.35191552]
[1726407280385,0.003648,60298.0,60297.0,0.68360652]
[1726407280860,0.003648,60298.0,60297.0,0.35191552]
[1726407286868,0.003648,60298.0,60297.0,1.01529752]
[1726407289287,0.003648,60298.0,60297.0,1.34698852]
[1726407289523,0.19952793,60308.0,60297.0,1.34698852]
[1726407289524,0.04976396,60313.0,60302.0,0.023]
[1726407289767,0.24854807,60313.0,60311.0,0.92427548]
[1726407289983,0.07464595,60317.0,60311.0,1.25588948]
[1726407289984,0.04976396,60317.0,60311.0,1.25588948]
[1726407290227,0.04976396,60319.0,60311.0,1.25588948]
[1726407290450,0.04976396,60319.0,60311.0,1.44278948]
[1726407290709,0.04975279,60319.0,60311.0,1.44278948]
[1726407291198,0.04975279,60320.0,60311.0,1.44278948]
[1726407291640,0.04975279,60325.0,60311.0,0.28714048]
[1726407291864,0.04975279,60328.0,60326.0,0.331532]
[1726407292100,0.04975279,60328.0,60327.0,0.26100348]
[1726407292326,0.04975279,60331.0,60327.0,0.26100148]
[1726407292594,0.04975279,60331.0,60329.0,0.165756]
[1726407293119,0.02601921,60332.0,60331.0,0.497256]
[1726407293568,0.04975279,60338.0,60336.0,0.165735]
[1726407293794,0.27052919,60340.0,60331.0,0.331504]
[1726407293795,0.04975279,60339.0,60334.0,0.165743]
[1726407294061,0.2414909,60339.0,60334.0,0.165743]
[1726407294314,0.165733,60338.0,60332.0,0.165748]
[1726407294532,0.21548579,60338.0,60332.0,0.165748]
[1726407294971,0.21548579,60338.0,60334.0,0.001]
[1726407295174,0.165735,60337.0,60332.0,0.165748]
[1726407296527,0.169735,60337.0,60332.0,0.165748]
[1726407297864,0.172735,60337.0,60332.0,0.165748]
[1726407298083,0.007,60337.0,60333.0,0.165746]
[1726407298310,0.003,60337.0,60333.0,0.165746]
[1726407298972,0.165734,60338.0,60333.0,0.165746]
[1726407299426,0.1,60339.0,60336.0,0.165737]
[1726407299663,0.1,60339.0,60334.0,0.165742]
[1726407299664,0.265731,60339.0,60334.0,0.165742]
[1726407300163,0.165733,60338.0,60333.0,0.003]
[1726407300398,0.166559,60337.0,60333.0,0.003]
[1726407300650,0.000824,60337.0,60333.0,0.003]
[1726407300890,0.000824,60337.0,60333.0,0.008]
[1726407301356,0.16656,60337.0,60333.0,0.003]
[1726407301574,0.16656,60337.0,60333.0,0.165745]
[1726407301575,0.000824,60337.0,60333.0,0.165745]
[1726407301826,0.16656,60337.0,60334.0,0.002]
[1726407302303,0.16656,60337.0,60331.0,0.16575]
[1726407302543,0.000824,60337.0,60333.0,0.004]
[1726407302773,0.165742,60335.0,60333.0,0.004]
[1726407303011,0.165738,60336.0,60333.0,0.004]
[1726407303287,0.165738,60336.0,60331.0,0.165752]
[1726407303288,0.165618,60336.0,60331.0,0.165752]
[1726407303525,0.165618,60336.0,60331.0,0.169752]
[1726407304259,0.165618,60336.0,60333.0,0.005]
[1726407304478,0.82872,60334.0,60333.0,0.005]
[1726407304699,0.82872,60334.0,60331.0,0.004]
[1726407304700,0.165749,60332.0,60331.0,0.004]
[1726407304929,0.165749,60332.0,60331.0,0.006]
[1726407304930,0.497248,60332.0,60331.0,0.006]
[1726407305157,0.497248,60332.0,60318.0,0.165786]
[1726407305158,0.165774,60323.0,60318.0,0.165786]
[1726407305384,0.15219388,60333.0,60320.0,0.165781]
[1726407305385,0.331528,60327.0,60320.0,0.165781]
[1726407305611,0.165769,60325.0,60321.0,0.165779]
[1726407306053,0.165758,60329.0,60323.0,0.165771]
[1726407306283,0.006,60332.0,60331.0,0.001]
[1726407306711,0.005,60332.0,60331.0,0.001]
[1726407307596,0.1,60335.0,60328.0,0.165758]
[1726407308341,0.165749,60332.0,60331.0,0.001]
[1726407308575,0.170749,60332.0,60331.0,0.001]
[1726407308799,0.175749,60332.0,60331.0,0.001]
[1726407309037,0.01,60332.0,60331.0,0.001]
[1726407309269,0.001,60335.0,60329.0,0.48370788]
[1726407309512,0.001,60335.0,60334.0,0.165744]
[1726407310231,0.001,60335.0,60334.0,0.82872]
[1726407310467,0.001,60335.0,60334.0,1.160208]
[1726407311149,0.000824,60337.0,60336.0,0.828692]
[1726407311397,0.000824,60337.0,60336.0,0.827692]
[1726407312558,0.006824,60337.0,60336.0,0.827692]
[1726407312781,0.003824,60337.0,60336.0,0.827692]
[1726407313017,0.000824,60337.0,60336.0,0.827692]
[1726407313469,0.001824,60337.0,60336.0,0.832692]
[1726407314601,0.001824,60337.0,60336.0,1.164169]
[1726407314835,0.001824,60337.0,60336.0,1.168169]
[1726407315055,0.001824,60337.0,60336.0,1.164169]
[1726407315564,0.002824,60337.0,60336.0,1.170169]
[1726407316501,0.002824,60337.0,60336.0,0.507215]
[1726407316736,0.002824,60337.0,60336.0,0.011]
[1726407317188,0.002824,60337.0,60336.0,0.176738]
[1726407317406,0.002824,60337.0,60336.0,0.011]
[1726407317876,0.002824,60337.0,60336.0,0.176738]
[1726407318101,0.002824,60337.0,60336.0,0.011]
[1726407323081,0.002824,60337.0,60336.0,0.176738]
[1726407323538,0.002824,60337.0,60336.0,0.508215]
[1726407323757,0.002824,60337.0,60336.0,0.839692]
[1726407326229,0.002824,60337.0,60336.0,0.84134]
[1726407327326,0.002824,60337.0,60336.0,0.509863]
[1726407328482,0.002824,60337.0,60336.0,0.178386]
[1726407329197,0.002824,60337.0,60336.0,0.509863]
[1726407330578,0.002824,60337.0,60336.0,0.178386]
[1726407331815,0.00938865,60337.0,60336.0,0.178386]
[1726407332493,0.00938865,60337.0,60336.0,0.509863]
[1726407333208,0.002824,60337.0,60336.0,0.509863]
[1726407334137,0.002824,60337.0,60336.0,0.84134]
[1726407334930,0.002824,60337.0,60336.0,0.509863]
[1726407337682,0.002824,60337.0,60336.0,0.178386]
[1726407337904,0.002824,60337.0,60336.0,0.012648]
[1726407338150,0.00976144,60337.0,60336.0,0.178386]
[1726407338402,0.002824,60337.0,60336.0,0.178386]
[1726407338614,0.00976144,60337.0,60336.0,0.178386]
[1726407339753,0.00976144,60337.0,60336.0,0.012648]
[1726407339979,0.17549644,60337.0,60336.0,0.012648]
[1726407343573,0.00976144,60337.0,60336.0,0.012648]
[1726407343799,0.00976144,60337.0,60336.0,0.509863]
[1726407344029,0.00976144,60337.0,60336.0,0.6049556]
[1726407344030,0.002824,60337.0,60336.0,0.6049556]
[1726407344248,0.00972808,60337.0,60336.0,0.6049556]
[1726407344698,0.002824,60337.0,60336.0,0.6049556]
[1726407345597,0.002824,60337.0,60336.0,0.178386]
[1726407345821,0.002824,60337.0,60336.0,0.344125]
[1726407346050,0.002824,60337.0,60336.0,0.509863]
[1726407348612,0.002824,60337.0,60336.0,0.178386]
[1726407350501,0.002824,60337.0,60336.0,0.509863]
[1726407351640,0.00966599,60337.0,60336.0,0.509863]
[1726407352572,0.002824,60337.0,60336.0,0.509863]
[1726407353504,1.71706362,60337.0,60336.0,0.012648]
[1726407353745,1.465472,60337.0,60336.0,0.012648]
[1726407353975,1.47274058,60337.0,60336.0,0.012648]
[1726407354321,1.47174058,60337.0,60336.0,0.007648]
[1726407354428,1.47074058,60337.0,60336.0,0.001648]
[1726407354668,1.47374058,60337.0,60336.0,0.001648]
[1726407354913,1.47374058,60337.0,60336.0,0.002648]
[1726407354914,1.47974058,60337.0,60336.0,0.002648]
[1726407355151,1.47674058,60337.0,60336.0,0.001648]
[1726407355634,1.48774058,60337.0,60336.0,0.002648]
[1726407357038,1.47674058,60337.0,60336.0,0.001648]
[1726407357280,1.48674058,60337.0,60336.0,0.001648]
[1726407357509,1.48152711,60337.0,60336.0,0.002648]
[1726407357732,1.48752711,60337.0,60336.0,0.002648]
[1726407359598,1.48391062,60337.0,60336.0,0.002648]
[1726407360585,1.6081934,60337.0,60336.0,0.002648]
[1726407361812,0.58458741,60337.0,60336.0,0.002648]
[1726407362070,0.22826281,60337.0,60336.0,0.002648]
[1726407362297,0.012824,60337.0,60336.0,0.002648]
[1726407362764,0.178559,60337.0,60336.0,0.002648]
[1726407363464,0.51003,60337.0,60336.0,0.002648]
[1726407363943,0.178559,60337.0,60336.0,0.002648]
[1726407364171,0.50403,60337.0,60336.0,0.001648]
[1726407364654,0.50803,60337.0,60336.0,0.001648]
[1726407364886,0.50203,60337.0,60336.0,0.001648]
[1726407365121,0.49903,60337.0,60336.0,0.001648]
[1726407365367,0.50103,60337.0,60336.0,0.001648]
[1726407366088,0.50103,60337.0,60336.0,0.15382809]
[1726407366089,0.003824,60337.0,60336.0,0.15382809]
[1726407366332,0.003824,60337.0,60336.0,0.31956609]
[1726407366816,0.003824,60337.0,60336.0,0.65104309]
[1726407373514,0.003824,60337.0,60336.0,0.98252009]
[1726407373762,0.003824,60337.0,60336.0,0.65104309]
[1726407377077,0.003824,60337.0,60336.0,0.98252009]
[1726407377590,0.003824,60337.0,60336.0,0.65104309]
[1726407378291,0.003824,60337.0,60336.0,0.98252009]
[1726407381091,0.003824,60337.0,60336.0,1.49919709]
[1726407381779,0.003824,60337.0,60336.0,1.16772009]
[1726407382257,0.003824,60337.0,60336.0,0.98252009]
[1726407386070,0.003824,60337.0,60336.0,0.92544128]
[1726407405229,0.003824,60337.0,60336.0,0.001648]
[1726407407420,0.02983013,60337.0,60336.0,0.001648]
[1726407407896,0.003824,60337.0,60336.0,0.001648]
[1726407410154,0.832501,60337.0,60336.0,0.001648]
[1726407410404,0.90705778,60337.0,60336.0,0.001648]
[1726407410895,1.2882333,60337.0,60336.0,0.001648]
[1726407411118,1.2882333,60337.0,60334.0,0.001648]
[1726407411119,0.828705,60335.0,60334.0,0.001648]
[1726407411364,0.9282568,60335.0,60334.0,0.001648]
[1726407413264,0.497223,60335.0,60334.0,0.001648]
[1726407413511,0.57585717,60335.0,60334.0,0.001648]
[1726407413993,0.833705,60335.0,60334.0,0.002648]
[1726407414215,0.91233821,60335.0,60334.0,0.002648]
[1726407414441,0.828705,60335.0,60334.0,0.001648]
[1726407414673,0.85871391,60335.0,60334.0,0.001648]
[1726407414905,0.93634712,60335.0,60334.0,0.001648]
[1726407415406,0.86171391,60335.0,60334.0,0.001648]
[1726407415904,0.93632825,60335.0,60334.0,0.001648]
[1726407416832,0.91145045,60335.0,60334.0,0.001648]
[1726407417063,0.93632825,60335.0,60334.0,0.001648]
[1726407417781,0.93631066,60335.0,60334.0,0.001648]
[1726407418247,0.91143904,60335.0,60334.0,0.001648]
[1726407418986,0.91143913,60335.0,60334.0,0.001648]
[1726407419220,0.91143925,60335.0,60334.0,0.001648]
[1726407419456,0.93631066,60335.0,60334.0,0.001648]
[1726407419734,0.93629933,60335.0,60334.0,0.001648]
[1726407419964,0.91143513,60335.0,60334.0,0.001648]
[1726407420202,0.86171391,60335.0,60334.0,0.001648]
[1726407421928,0.835705,60335.0,60334.0,0.001648]
[1726407423616,0.88541179,60335.0,60334.0,0.001648]
[1726407425059,0.91142141,60335.0,60334.0,0.001648]
[1726407427729,0.88541179,60335.0,60334.0,0.001648]
[1726407428875,1.21689379,60335.0,60334.0,0.001648]
[1726407430076,0.55391676,60335.0,60334.0,0.001648]
[1726407430534,0.88539876,60335.0,60334.0,0.001648]
[1726407432260,0.91140815,60335.0,60334.0,0.001648]
[1726407433834,1.24289015,60335.0,60334.0,0.001648]
[1726407434291,1.19319639,60335.0,60334.0,0.001648]
[1726407434516,1.24172765,60335.0,60334.0,0.001648]
[1726407434749,1.167187,60335.0,60334.0,0.001648]
[1726407435279,1.29142941,60335.0,60334.0,0.001648]
[1726407440678,1.267187,60335.0,60334.0,0.001648]
[1726407442733,1.267187,60335.0,60310.0,0.24861398]
[1726407442734,0.331579,60318.0,60310.0,0.24861398]
[1726407442952,0.331567,60320.0,60311.0,0.165805]
[1726407443169,0.04968579,60325.0,60309.0,0.42290128]
[1726407443399,0.07452869,60326.0,60309.0,0.42290128]
[1726407443400,0.331595,60315.0,60309.0,0.42290128]
[1726407443617,0.165805,60312.0,60309.0,0.42290128]
[1726407444059,0.165805,60312.0,60310.0,0.001]
[1726407444306,0.331595,60315.0,60310.0,0.001]
[1726407444307,0.1658,60314.0,60310.0,0.001]
[1726407444572,0.1658,60314.0,60310.0,0.001823]
[1726407444782,0.165802,60313.0,60310.0,0.001823]
[1726407445017,0.165802,60313.0,60310.0,0.003823]
[1726407445241,0.165802,60313.0,60310.0,0.002823]
[1726407445702,0.165802,60313.0,60310.0,0.000823]
[1726407445930,0.04967645,60323.0,60312.0,0.09510128]
[1726407446161,0.165785,60319.0,60317.0,0.09510128]
[1726407446786,0.331566,60320.0,60317.0,0.09510128]
[1726407447021,0.165789,60318.0,60314.0,0.26089928]
[1726407448881,0.165794,60316.0,60311.0,0.26090628]
[1726407449114,0.331566,60320.0,60314.0,0.005]
[1726407449345,0.331572,60319.0,60314.0,0.005]
[1726407449579,0.16579,60318.0,60314.0,0.005]
[1726407449811,0.16579,60318.0,60313.0,0.1658]
[1726407450036,0.165795,60316.0,60311.0,0.165807]
[1726407450266,0.165796,60315.0,60311.0,0.169807]
[1726407450703,0.165796,60315.0,60311.0,0.173807]
[1726407450963,0.001,60316.0,60311.0,0.173807]
[1726407450964,0.001,60316.0,60311.0,0.10310128]
[1726407451190,0.001,60316.0,60314.0,0.26089928]
[1726407451410,0.001,60316.0,60314.0,0.09510128]
[1726407451917,0.001,60316.0,60314.0,0.42669528]
[1726407452151,0.331567,60320.0,60313.0,0.1658]
[1726407452375,0.001,60315.0,60313.0,0.1658]
[1726407452601,0.001,60315.0,60314.0,0.003]
[1726407452830,0.001,60315.0,60310.0,0.000823]
[1726407452831,0.166796,60315.0,60310.0,0.000823]
[1726407453061,0.165796,60315.0,60314.0,0.004]
[1726407453283,0.165796,60315.0,60314.0,0.008]
[1726407453499,0.165796,60315.0,60314.0,0.004]
[1726407453719,0.498388,60315.0,60314.0,0.004]
[1726407453939,0.165801,60313.0,60310.0,0.000823]
[1726407455996,0.165801,60313.0,60310.0,0.009823]
[1726407455997,0.166801,60313.0,60310.0,0.009823]
[1726407456242,0.166801,60313.0,60310.0,0.175632]
[1726407456243,0.001,60313.0,60310.0,0.175632]
[1726407456467,0.001,60313.0,60310.0,0.170632]
[1726407456956,0.002,60313.0,60310.0,0.27073328]
[1726407459040,0.002,60313.0,60311.0,0.165806]
[1726407459291,0.002,60313.0,60310.0,0.27073228]
[1726407459518,0.002,60313.0,60311.0,0.165805]
[1726407459988,0.001,60313.0,60311.0,0.165805]
[1726407460220,0.002,60313.0,60311.0,0.170805]
[1726407461344,0.002,60313.0,60312.0,0.165804]
[1726407461780,0.001,60313.0,60312.0,0.165804]
[1726407462708,0.003,60313.0,60312.0,0.174804]
[1726407463845,0.003,60313.0,60312.0,0.009]
[1726407465207,0.003,60313.0,60312.0,0.174804]
[1726407465883,0.003,60313.0,60312.0,0.506412]
[1726407466116,0.003,60313.0,60312.0,0.83802]
[1726407466568,0.003,60313.0,60312.0,0.506412]
[1726407473247,0.003,60313.0,60312.0,0.174804]
[1726407473703,0.003,60313.0,60312.0,0.009]
[1726407476633,0.003,60313.0,60312.0,0.174804]
[1726407479373,0.003,60313.0,60312.0,0.009]
[1726407479597,0.003,60313.0,60312.0,0.174804]
[1726407480698,0.003,60313.0,60312.0,0.175627]
[1726407483051,0.003,60313.0,60312.0,0.838843]
[1726407483291,0.12435945,60322.0,60312.0,0.838843]
[1726407483292,0.04974378,60323.0,60322.0,0.497329]
[1726407483513,0.09948756,60326.0,60322.0,0.497329]
[1726407483514,0.04974378,60325.0,60322.0,0.09510128]
[1726407483757,0.0497665,60325.0,60324.0,0.497314]
[1726407483977,0.0497665,60326.0,60325.0,0.165768]
[1726407484218,0.0497665,60326.0,60325.0,0.26086928]
[1726407484913,0.0497665,60326.0,60325.0,0.59240628]
[1726407486093,0.0497665,60326.0,60325.0,0.59440628]
[1726407486546,0.04976615,60326.0,60325.0,0.09510128]
[1726407486797,0.04976615,60326.0,60325.0,0.165768]
[1726407487263,0.04976615,60326.0,60325.0,0.166768]
[1726407487989,0.04976615,60326.0,60325.0,0.002]
[1726407488433,0.07464923,60326.0,60325.0,0.002]
[1726407489588,0.07464923,60327.0,60325.0,0.002]
[1726407490040,0.07464923,60326.0,60325.0,0.002]
[1726407490959,0.09953231,60327.0,60325.0,0.002]
[1726407491184,0.07463145,60326.0,60325.0,0.002]
[1726407491410,0.07462816,60326.0,60325.0,0.002]
[1726407491634,0.07462816,60326.0,60325.0,0.001]
[1726407493157,0.07462816,60327.0,60325.0,0.002]
[1726407493601,0.04974695,60326.0,60325.0,0.002]
[1726407494512,0.04974695,60326.0,60325.0,0.165768]
[1726407494754,0.04974695,60327.0,60326.0,0.165766]
[1726407494986,0.04974695,60329.0,60328.0,0.497281]
[1726407495215,0.02601206,60331.0,60330.0,0.165755]
[1726407495216,0.04974695,60331.0,60330.0,0.165755]
[1726407495708,0.001646,60334.0,60333.0,0.165746]
[1726407495949,0.001646,60334.0,60333.0,0.59234028]
[1726407496182,0.001646,60334.0,60333.0,0.92383328]
[1726407496690,0.001646,60334.0,60333.0,0.91683328]
[1726407497611,0.001646,60334.0,60333.0,0.91783328]
[1726407497612,0.008646,60334.0,60333.0,0.91783328]
[1726407498343,0.008646,60334.0,60333.0,0.91883328]
[1726407499016,0.001646,60334.0,60333.0,0.91783328]
[1726407499692,0.001646,60334.0,60333.0,0.91983328]
[1726407501566,0.001646,60334.0,60333.0,0.58834028]
[1726407501801,0.001646,60334.0,60333.0,0.91983328]
[1726407504583,0.001646,60334.0,60333.0,0.92065628]
[1726407505921,0.001646,60334.0,60333.0,0.58916328]
[1726407506154,0.001646,60334.0,60333.0,0.92065628]
[1726407507075,0.001646,60334.0,60333.0,0.58916328]
[1726407507305,0.001646,60334.0,60333.0,0.25767028]
[1726407507547,0.001646,60334.0,60333.0,0.58916328]
[1726407507755,0.001646,60334.0,60333.0,0.92065628]
[1726407510786,0.001646,60334.0,60333.0,0.335316]
[1726407511009,0.001646,60334.0,60333.0,0.003823]
[1726407511237,0.001646,60334.0,60333.0,1.25914928]
[1726407511434,0.001646,60334.0,60333.0,0.92765628]
[1726407512426,0.001646,60334.0,60333.0,0.59616328]
[1726407515355,0.001646,60334.0,60333.0,0.92765628]
[1726407516229,0.001646,60334.0,60333.0,0.169569]